bitfinex/quotes_SOLUSD_20251208
["timestamp","ask_amount","ask_price","bid_price","bid_amount"]
[1765209354219,14.81691455,136.22,136.18,15.38302055]
[1765209354439,0.66,136.21,136.18,7.34302055]
[1765209354639,6.00696963,136.21,136.15,32.45900475]
[1765209354940,6.00696963,136.21,136.17,7.34376147]
[1765209355447,16.308864,136.25,136.2,21.65583363]
[1765209355448,0.66,136.25,136.2,21.65583363]
[1765209355747,8.80994492,136.26,136.21,0.71]
[1765209355923,14.15691455,136.26,136.21,0.71]
[1765209356124,9.46994492,136.26,136.21,0.71]
[1765209356448,0.66,136.26,136.21,17.018864]
[1765209356618,0.66,136.26,136.22,0.71]
[1765209357018,0.66,136.26,136.23,7.34052704]
[1765209357217,8.04,136.27,136.23,25.69184466]
[1765209357432,8.04,136.27,136.23,26.40184466]
[1765209358031,8.04,136.27,136.24,0.71]
[1765209358642,8.04,136.27,136.23,25.69184466]
[1765209358952,8.04,136.27,136.23,26.40184466]
[1765209359322,9.46994492,136.26,136.21,34.66242939]
[1765209359527,14.81691455,136.26,136.21,34.66242939]
[1765209359747,0.71,136.25,136.21,35.37242939]
[1765209360353,0.71,136.25,136.22,7.34100246]
[1765209360870,0.71,136.25,136.23,7.34039773]
[1765209361726,13.38696963,136.27,136.22,25.69373072]
[1765209361949,0.71,136.26,136.22,7.34106592]
[1765209362151,0.71,136.26,136.21,0.71]
[1765209362152,5.34696963,136.25,136.2,18.35500302]
[1765209362368,14.15691455,136.23,136.2,7.34206349]
[1765209362542,0.71,136.28,136.21,24.36043563]
[1765209362729,8.80994492,136.29,136.24,5.34696963]
[1765209362928,5.34696963,136.27,136.22,0.71]
[1765209363136,6.05696963,136.28,136.22,6.05696963]
[1765209363445,6.05696963,136.28,136.22,0.71]
[1765209363628,0.71,136.28,136.24,7.33998825]
[1765209363826,8.04,136.3,136.24,7.33998825]
[1765209364158,9.51994492,136.29,136.24,26.39995889]
[1765209364457,14.86691455,136.29,136.24,26.39995889]
[1765209364663,0.71,136.28,136.24,26.39995889]
[1765209364869,0.71,136.28,136.24,25.68995889]
[1765209365168,0.71,136.3,136.26,5.34696963]
[1765209365371,0.71,136.3,136.26,0.71]
[1765209365677,0.71,136.3,136.27,7.33837234]
[1765209366244,0.71,136.3,136.26,7.3386906]
[1765209366245,13.39378506,136.3,136.26,7.3386906]
[1765209366654,0.71,136.29,136.26,7.3386906]
[1765209366868,5.34696963,136.27,136.21,0.71]
[1765209367075,5.34696963,136.27,136.21,6.05696963]
[1765209367364,5.34696963,136.27,136.17,5.34696963]
[1765209367365,5.34696963,136.23,136.18,0.71]
[1765209367543,8.04,136.23,136.19,7.34231689]
[1765209367745,0.71,136.22,136.19,7.34231689]
[1765209367958,8.75,136.23,136.19,7.34231689]
[1765209368389,8.75,136.23,136.19,8.05231689]
[1765209368550,8.75,136.23,136.19,26.40902443]
[1765209370344,8.75,136.23,136.19,25.69902443]
[1765209370345,14.09696963,136.23,136.19,25.69902443]
[1765209370551,14.09696963,136.23,136.19,7.34231689]
[1765209370764,21.43750458,136.23,136.19,7.34231689]
[1765209371068,8.80994492,136.22,136.19,7.34231689]
[1765209371259,14.86691455,136.22,136.18,7.34301018]
[1765209371461,14.86691455,136.22,136.19,7.34259061]
[1765209371760,0.71,136.22,136.19,7.34259061]
[1765209372139,22.20799588,136.22,136.18,7.34306961]
[1765209372341,5.34696963,136.2,136.16,16.308864]
[1765209372545,5.34696963,136.19,136.16,7.34410221]
[1765209372850,6.05696963,136.19,136.16,7.34410221]
[1765209373070,0.71,136.18,136.15,7.34463293]
[1765209373374,6.05696963,136.18,136.15,7.34463293]
[1765209373543,6.05696963,136.18,136.14,7.34516437]
[1765209373868,12.69195012,136.15,136.09,7.34807847]
[1765209374169,5.34696963,136.15,136.1,6.05696963]
[1765209374339,5.34696963,136.12,136.09,7.34807847]
[1765209374549,17.55994492,136.14,136.07,7.5489994]
[1765209374550,5.34696963,136.11,136.07,7.5489994]
[1765209374758,5.34696963,136.11,136.07,0.2]
[1765209374961,0.71,136.13,136.07,0.91]
[1765209374962,13.38696963,136.12,136.07,0.91]
[1765209375362,14.09696963,136.12,136.07,0.91]
[1765209375569,14.09696963,136.12,136.07,0.2]
[1765209375570,5.34696963,136.08,136.07,0.2]
[1765209375947,6.05696963,136.08,136.07,0.2]
[1765209376272,0.71,136.08,136.07,0.2]
[1765209376771,6.05696963,136.08,136.07,0.2]
[1765209377560,14.86691455,136.08,136.07,0.2]
[1765209378046,9.51994492,136.08,136.07,0.2]
[1765209378381,0.71,136.13,136.07,6.25696963]
[1765209378669,8.04,136.15,136.09,5.34696963]
[1765209378670,14.09696963,136.15,136.09,5.34696963]
[1765209379045,8.04,136.15,136.1,5.34696963]
[1765209379246,8.04,136.15,136.11,5.34696963]
[1765209379448,8.04,136.15,136.12,5.34696963]
[1765209379668,6.05696963,136.18,136.12,5.34696963]
[1765209379868,14.09696963,136.18,136.12,5.34696963]
[1765209380170,5.34696963,136.15,136.1,16.308864]
[1765209380373,13.38696963,136.15,136.11,7.34662872]
[1765209380555,0.71,136.14,136.11,7.34662872]
[1765209381750,0.71,136.14,136.12,7.34633776]
[1765209382070,8.04,136.15,136.11,31.06117934]
[1765209382286,0.69,136.14,136.11,31.06117934]
[1765209382463,0.69,136.14,136.11,7.34699875]
[1765209383278,0.69,136.14,136.11,12.69396838]
[1765209383659,0.69,136.14,136.11,31.06146525]
[1765209384877,8.04,136.15,136.11,31.06146525]
[1765209385056,8.04,136.15,136.12,5.34696963]
[1765209385450,12.69020492,136.18,136.12,5.34696963]
[1765209385451,0.69,136.2,136.14,5.34696963]
[1765209385669,0.69,136.2,136.12,8.04]
[1765209385670,0.69,136.2,136.15,5.34696963]
[1765209386463,0.69,136.2,136.16,7.34430082]
[1765209386973,13.37914204,136.2,136.16,7.34430082]
[1765209387152,5.34696963,136.19,136.16,7.34430082]
[1765209387356,5.34696963,136.17,136.12,7.34635501]
[1765209387559,8.80994492,136.16,136.12,7.34635501]
[1765209387864,16.84108346,136.22,136.15,12.69180987]
[1765209388062,0.69,136.22,136.18,5.34696963]
[1765209388258,0.69,136.22,136.17,5.34696963]
[1765209388485,0.69,136.22,136.18,7.3432222]
[1765209389283,13.37805028,136.22,136.18,7.3432222]
[1765209389584,8.80994492,136.21,136.17,7.34356118]
[1765209389757,14.84691455,136.21,136.17,7.34356118]
[1765209389961,0.69,136.2,136.17,7.34356118]
[1765209390488,0.69,136.2,136.16,12.69127045]
[1765209391261,13.37922323,136.2,136.16,7.34430082]
[1765209391470,21.41922323,136.2,136.15,7.34469265]
[1765209391683,0.69,136.19,136.15,7.34469265]
[1765209391891,0.69,136.19,136.15,31.0537629]
[1765209392985,0.69,136.19,136.15,7.34469265]
[1765209393184,0.69,136.19,136.15,12.69166228]
[1765209393984,0.69,136.19,136.15,7.34469265]
[1765209394176,13.37982536,136.19,136.15,7.34469265]
[1765209394373,5.34696963,136.18,136.15,7.34469265]
[1765209394687,5.34696963,136.17,136.13,25.71071769]
[1765209394886,5.34696963,136.16,136.13,7.34591934]
[1765209395063,5.34696963,136.16,136.12,7.34632254]
[1765209395064,5.34696963,136.15,136.12,7.34632254]
[1765209395261,6.03696963,136.15,136.12,7.34632254]
[1765209395664,0.69,136.14,136.11,7.34685376]
[1765209395962,5.34696963,136.13,136.07,23.91926354]
[1765209396178,8.80994492,136.15,136.07,5.54696963]
[1765209396382,9.49994492,136.19,136.14,5.34696963]
[1765209396664,0.69,136.19,136.15,12.69127264]
[1765209397769,0.69,136.19,136.15,31.05337326]
[1765209398998,6.03696963,136.19,136.15,25.70640363]
[1765209399367,6.03696963,136.18,136.14,7.34520905]
[1765209399565,5.34696963,136.17,136.12,5.34696963]
[1765209399771,6.03696963,136.17,136.13,7.34558734]
[1765209400089,0.69,136.16,136.13,7.34558734]
[1765209400794,0.69,136.16,136.12,7.346459]
[1765209400992,6.03696963,136.16,136.12,7.346459]
[1765209401503,6.03696963,136.15,136.12,7.346459]
[1765209401976,0.69,136.14,136.12,7.346459]
[1765209402398,5.34696963,136.13,136.09,18.36971526]
[1765209402594,14.15691455,136.13,136.07,5.54696963]
[1765209402794,0.69,136.12,136.07,5.54696963]
[1765209403211,0.69,136.12,136.08,7.34861845]
[1765209404388,0.69,136.12,136.08,31.06713422]
[1765209404916,0.69,136.12,136.08,34.01861763]
[1765209405211,16.33507585,136.12,136.08,7.34861845]
[1765209405408,0.69,136.11,136.08,7.34861845]
[1765209405730,8.04,136.12,136.09,8.29845304]
[1765209405896,24.37275666,136.16,136.11,8.29845304]
[1765209406207,8.73,136.16,136.11,8.29845304]
[1765209406503,8.04,136.16,136.11,8.29845304]
[1765209406710,0.69,136.15,136.11,8.29845304]
[1765209407414,0.69,136.15,136.12,7.346459]
[1765209408285,0.69,136.15,136.12,25.71260651]
[1765209409105,8.04,136.16,136.12,34.01105955]
[1765209409298,8.73,136.16,136.12,34.01105955]
[1765209409497,0.69,136.16,136.12,34.01105955]
[1765209410688,8.73,136.18,136.12,25.71260651]
[1765209410921,8.29845304,136.16,136.12,7.346459]
[1765209411089,8.29845304,136.15,136.1,105.47549104]
[1765209411291,8.29845304,136.14,136.11,7.34669596]
[1765209411522,0.69,136.14,136.11,7.34669596]
[1765209411716,0.69,136.14,136.11,25.71419283]
[1765209412014,0.69,136.14,136.11,34.01264587]
[1765209412413,8.98845304,136.16,136.11,34.01264587]
[1765209412614,0.69,136.15,136.11,34.01264587]
[1765209412808,0.69,136.15,136.11,7.34669596]
[1765209413013,8.98845304,136.15,136.11,7.34669596]
[1765209413507,0.69,136.14,136.11,7.34669596]
[1765209413921,0.69,136.16,136.12,8.29845304]
[1765209414434,8.98845304,136.16,136.11,34.01264587]
[1765209414922,0.69,136.15,136.11,34.01264587]
[1765209415513,8.98845304,136.16,136.11,34.01264587]
[1765209415691,0.69,136.15,136.11,34.01264587]
[1765209416825,8.98845304,136.15,136.11,7.34669596]
[1765209417205,0.69,136.14,136.11,7.34669596]
[1765209418094,8.80994492,136.15,136.11,7.34669596]
[1765209418299,0.69,136.14,136.11,7.34669596]
[1765209418500,8.80994492,136.07,136.05,0.2]
[1765209418718,8.80994492,136.05,135.99,7.55330331]
[1765209418931,8.29845304,136.02,135.99,7.55330331]
[1765209419125,8.29845304,136.03,135.99,7.55330331]
[1765209419307,8.04,136.06,136.0,8.69845304]
[1765209419511,0.68,136.13,136.05,8.29845304]
[1765209419806,0.68,136.13,136.1,7.34736845]
[1765209420007,8.29845304,136.11,136.06,26.41375784]
[1765209420225,16.83597636,136.13,136.08,8.29845304]
[1765209420396,105.08,136.19,136.12,8.29845304]
[1765209420602,105.08,136.19,136.13,8.29845304]
[1765209420603,0.68,136.18,136.13,8.29845304]
[1765209421010,0.68,136.18,136.14,8.29845304]
[1765209421323,0.68,136.18,136.13,8.29845304]
[1765209421527,8.02370781,136.18,136.13,15.64414056]
[1765209421725,16.32216085,136.18,136.13,7.34568752]
[1765209421927,0.68,136.17,136.13,7.34568752]
[1765209422114,0.68,136.17,136.13,15.64414056]
[1765209422435,17.10839796,136.16,136.12,7.34630754]
[1765209422639,8.80994492,136.16,136.12,7.34630754]
[1765209422848,0.68,136.15,136.12,7.34630754]
[1765209423327,8.97845304,136.15,136.1,8.29845304]
[1765209423501,8.97845304,136.15,136.1,15.64565954]
[1765209423707,0.68,136.14,136.1,15.64565954]
[1765209424222,8.97845304,136.14,136.1,7.3472065]
[1765209424530,0.68,136.14,136.1,7.3472065]
[1765209424715,8.04,136.15,136.11,8.29845304]
[1765209424922,8.72,136.15,136.11,8.29845304]
[1765209425132,0.68,136.14,136.11,8.29845304]
[1765209425636,8.04,136.15,136.14,7.34537975]
[1765209425941,0.68,136.17,136.14,7.34537975]
[1765209426309,0.68,136.17,136.14,15.64383279]
[1765209426536,8.04,136.18,136.15,8.29845304]
[1765209426832,26.65042915,136.23,136.17,8.29845304]
[1765209427034,0.68,136.21,136.17,8.29845304]
[1765209427206,0.68,136.21,136.19,8.29845304]
[1765209427410,0.68,136.24,136.2,8.29845304]
[1765209427630,0.68,136.24,136.09,8.18743169]
[1765209427928,8.29845304,136.18,136.13,7.34549786]
[1765209428136,8.04,136.17,136.14,7.34531977]
[1765209428341,8.04,136.17,136.14,8.29845304]
[1765209428633,8.04,136.17,136.13,15.64418854]
[1765209428814,0.68,136.16,136.14,7.34533054]
[1765209429139,8.04,136.17,136.14,7.34533054]
[1765209429450,0.68,136.24,136.17,16.308864]
[1765209429751,0.68,136.24,136.2,15.64039144]
[1765209429908,0.68,136.24,136.21,15.64003154]
[1765209430110,0.68,136.24,136.21,7.3415785]
[1765209430534,0.68,136.24,136.21,15.64003154]
[1765209430737,8.80994492,136.26,136.23,8.29845304]
[1765209431050,8.97845304,136.28,136.23,8.29845304]
[1765209431218,8.80994492,136.27,136.23,8.29845304]
[1765209431534,8.80994492,136.27,136.21,8.29845304]
[1765209431535,9.48994492,136.27,136.21,8.29845304]
[1765209431710,8.80994492,136.25,136.21,8.29845304]
[1765209431905,8.04,136.24,136.21,8.29845304]
[1765209432132,8.04,136.24,136.22,8.29845304]
[1765209432842,8.04,136.24,136.18,31.9504886]
[1765209432843,0.68,136.23,136.18,31.9504886]
[1765209433025,0.68,136.23,136.18,24.60731704]
[1765209433026,8.80994492,136.22,136.18,24.60731704]
[1765209433230,8.80994492,136.22,136.16,15.64236117]
[1765209433231,17.10839796,136.22,136.16,15.64236117]
[1765209433452,8.04,136.24,136.15,15.64315312]
[1765209433453,17.10839796,136.2,136.15,15.64315312]
[1765209433741,32.49089494,136.2,136.15,8.29845304]
[1765209434046,0.68,136.19,136.15,7.34481904]
[1765209434346,8.97845304,136.19,136.14,15.6436447]
[1765209434519,8.97845304,136.19,136.15,7.34479435]
[1765209434840,0.68,136.18,136.15,7.34479435]
[1765209435637,0.68,136.18,136.15,15.64324739]
[1765209435842,0.68,136.18,136.14,15.64364906]
[1765209436629,0.68,136.18,136.13,7.34579015]
[1765209436630,16.32177353,136.18,136.13,7.34579015]
[1765209436831,17.10839796,136.16,136.11,15.64527863]
[1765209437017,8.29845304,136.13,136.09,7.34765931]
[1765209437339,8.72,136.13,136.08,8.29845304]
[1765209437544,8.72,136.13,136.09,8.29845304]
[1765209437720,8.72,136.13,136.1,7.34751928]
[1765209438655,0.68,136.12,136.09,7.34788752]
[1765209438816,17.01845304,136.13,136.09,7.34788752]
[1765209439021,8.72,136.13,136.09,7.34788752]
[1765209439524,16.0659308,136.13,136.09,7.34788752]
[1765209439747,24.36438384,136.13,136.09,7.34788752]
[1765209440130,8.72,136.13,136.09,34.01653675]
[1765209440664,0.68,136.18,136.12,24.60731704]
[1765209440866,8.72,136.18,136.15,8.29845304]
[1765209441044,8.04,136.18,136.13,0.4]
[1765209441234,8.80994492,136.2,136.16,8.29845304]
[1765209441631,16.1521732,136.2,136.14,0.4]
[1765209441959,0.71,136.19,136.15,15.64329328]
[1765209442525,0.71,136.19,136.15,34.0053939]
[1765209442725,0.71,136.19,136.16,8.29845304]
[1765209443950,0.71,136.19,136.16,7.34398705]
[1765209444648,0.71,136.19,136.16,15.64244009]
[1765209445350,0.71,136.19,136.16,7.34398705]
[1765209446048,0.71,136.19,136.15,15.64309752]
[1765209446241,8.29845304,136.17,136.13,7.34589455]
[1765209446551,16.33845304,136.17,136.13,7.34589455]
[1765209446754,0.71,136.16,136.14,15.6435532]
[1765209447140,0.71,136.16,136.13,7.34571709]
[1765209447340,0.71,136.16,136.11,8.29845304]
[1765209447341,8.80994492,136.15,136.11,8.29845304]
[1765209447542,8.80994492,136.15,136.1,18.36833395]
[1765209447543,8.80994492,136.15,136.1,26.66678699]
[1765209447733,0.71,136.14,136.1,26.66678699]
[1765209447933,9.51994492,136.15,136.11,7.34646649]
[1765209448264,9.51994492,136.15,136.11,15.64491953]
[1765209448635,17.04845304,136.17,136.12,8.29845304]
[1765209448839,8.75,136.17,136.12,8.29845304]
[1765209449154,0.71,136.16,136.12,8.29845304]
[1765209449541,0.71,136.16,136.13,8.29845304]
[1765209449866,17.04845304,136.18,136.13,8.29845304]
[1765209450069,0.71,136.17,136.14,7.34537975]
[1765209450764,8.29845304,136.15,136.1,18.36824107]
[1765209450932,8.29845304,136.15,136.1,26.66669411]
[1765209451262,0.71,136.14,136.12,7.34609732]
[1765209451441,0.71,136.14,136.1,26.66669411]
[1765209451647,0.71,136.14,136.11,7.34678671]
[1765209452162,0.71,136.14,136.1,7.34732065]
[1765209452965,0.71,136.14,136.1,15.64577369]
[1765209453750,8.05541653,136.14,136.1,7.34732065]
[1765209453951,8.05541653,136.14,136.07,24.348864]
[1765209453952,8.29845304,136.11,136.07,7.34883172]
[1765209454158,8.04,136.11,136.07,7.34883172]
[1765209454467,0.71,136.1,136.07,7.34883172]
[1765209454764,0.71,136.1,136.04,24.348864]
[1765209454968,8.29845304,136.07,136.04,7.35030727]
[1765209455169,8.29845304,136.07,136.03,7.35114016]
[1765209455339,0.71,136.06,136.03,7.35114016]
[1765209455964,8.04,136.08,136.04,8.29845304]
[1765209456152,0.71,136.07,136.04,8.29845304]
[1765209456359,0.71,136.07,136.03,34.0278921]
[1765209456653,0.71,136.07,136.03,7.35114016]
[1765209457365,0.71,136.07,136.04,8.29845304]
[1765209457671,0.71,136.07,136.03,15.6495932]
[1765209458034,0.71,136.07,136.03,34.0278921]
[1765209459063,16.84994492,136.08,136.04,0.4]
[1765209459279,0.71,136.15,136.08,16.308864]
[1765209459568,29.4764309,136.16,136.13,8.29845304]
[1765209459569,22.13207828,136.16,136.13,8.29845304]
[1765209459740,22.13207828,136.16,136.09,8.04]
[1765209459741,8.80994492,136.16,136.12,8.29845304]
[1765209459941,8.80994492,136.16,136.13,7.34591934]
[1765209460163,8.75,136.18,136.15,8.29845304]
[1765209460391,0.71,136.18,136.15,8.29845304]
[1765209460677,0.71,136.18,136.16,8.29845304]
[1765209461047,17.55994492,136.2,136.16,8.29845304]
[1765209461246,0.71,136.19,136.16,8.29845304]
[1765209461863,0.71,136.19,136.17,7.34376147]
[1765209462370,8.04,136.2,136.17,15.64221451]
[1765209462670,8.80994492,136.23,136.19,8.29845304]
[1765209462852,16.09008925,136.24,136.2,8.29845304]
[1765209462853,8.75,136.24,136.2,8.29845304]
[1765209463182,9.51994492,136.23,136.19,8.29845304]
[1765209463344,9.51994492,136.23,136.2,8.29845304]
[1765209463667,0.71,136.22,136.2,8.29845304]
[1765209464042,0.71,136.22,136.2,15.64057605]
[1765209464238,0.71,136.22,136.2,7.34212301]
[1765209464471,0.71,136.22,136.18,8.29845304]
[1765209464766,0.71,136.22,136.2,8.29845304]
[1765209464962,8.80994492,136.24,136.21,8.29845304]
[1765209465164,8.80994492,136.24,136.21,15.64005791]
[1765209465367,24.348864,136.25,136.22,8.29845304]
[1765209465559,9.51994492,136.24,136.2,15.64043985]
[1765209465872,0.71,136.23,136.2,15.64043985]
[1765209466056,8.80994492,136.22,136.18,8.29845304]
[1765209466369,8.80994492,136.22,136.16,24.348864]
[1765209466370,16.84994492,136.22,136.17,15.64202368]
[1765209466542,0.71,136.21,136.17,15.64202368]
[1765209466748,8.80994492,136.2,136.17,5.35521996]
[1765209467158,0.71,136.19,136.17,5.35521996]
[1765209467342,0.71,136.19,136.16,12.69934384]
[1765209467944,0.71,136.19,136.16,5.35521996]
[1765209468263,8.80994492,136.18,136.13,12.70113503]
[1765209468779,0.71,136.17,136.13,12.70113503]
[1765209468952,8.04,136.16,136.13,12.70113503]
[1765209469438,8.75,136.16,136.13,12.70113503]
[1765209469644,8.75,136.16,136.14,7.34537636]
[1765209469945,8.75,136.16,136.13,12.70093789]
[1765209470140,0.71,136.15,136.12,12.70152019]
[1765209470342,0.71,136.15,136.11,18.36694333]
[1765209470562,14.16516488,136.14,136.1,7.3472542]
[1765209470755,8.04,136.13,136.1,7.3472542]
[1765209470951,8.75,136.13,136.1,7.3472542]
[1765209471176,8.04,136.13,136.1,7.3472542]
[1765209471475,0.68,136.12,136.08,5.35521996]
[1765209472159,8.02684264,136.12,136.08,7.34851819]
[1765209472364,13.3820626,136.12,136.08,7.34851819]
[1765209472551,0.68,136.11,136.08,7.34851819]
[1765209472948,8.04,136.1,136.07,7.34915825]
[1765209473149,5.35521996,136.08,136.04,7.35041835]
[1765209473564,0.68,136.07,136.04,7.35041835]
[1765209474157,0.68,136.07,136.02,7.35143864]
[1765209474158,21.42466268,136.07,136.02,7.35143864]
[1765209474375,5.35521996,136.06,136.02,7.35143864]
[1765209474562,5.35521996,136.05,136.02,7.35169118]
[1765209474764,6.03521996,136.05,136.02,7.35169118]
[1765209474965,0.68,136.04,136.01,7.35221303]
[1765209475274,0.68,136.04,135.99,0.57405165]
[1765209475275,14.07521996,136.04,135.99,0.57405165]
[1765209475453,14.07521996,136.04,135.99,5.92927161]
[1765209475776,0.68,136.03,135.99,5.92927161]
[1765209475974,0.68,136.03,136.0,7.3525711]
[1765209477060,6.03521996,136.03,135.99,0.57405165]
[1765209477270,6.03521996,136.03,135.99,7.92743486]
[1765209477475,0.68,136.02,135.99,7.92743486]
[1765209477667,0.68,136.02,135.99,0.57405165]
[1765209477876,0.68,136.02,135.99,7.92753094]
[1765209479378,8.80994492,136.03,135.99,13.2827509]
[1765209479579,0.67,136.02,135.99,7.92753094]
[1765209479799,0.67,136.02,135.99,0.57405165]
[1765209480090,0.67,136.02,135.99,7.92744334]
[1765209480289,16.06088442,136.04,135.99,13.2826633]
[1765209480474,0.67,136.03,135.99,13.2826633]
[1765209480788,0.67,136.03,135.99,31.66636798]
[1765209481021,8.04,136.05,136.01,5.35521996]
[1765209481166,8.04,136.05,136.02,7.35186002]
[1765209481691,8.71,136.05,136.01,7.35225558]
[1765209481894,14.83516488,136.04,135.99,7.92714603]
[1765209482393,0.67,136.03,135.99,7.92714603]
[1765209482691,6.02521996,136.03,135.99,0.57405165]
[1765209482987,22.20516488,136.02,135.99,0.57405165]
[1765209483292,12.70813375,136.01,135.99,0.57405165]
[1765209483512,14.16516488,136.0,135.99,0.57405165]
[1765209483785,14.83516488,136.0,135.99,0.57405165]
[1765209485192,16.16504936,135.96,135.94,0.2]
[1765209485400,13.39521996,135.95,135.94,0.2]
[1765209485593,14.06521996,135.95,135.94,0.2]
[1765209486495,22.87516488,135.95,135.94,0.2]
[1765209487197,16.84994492,135.95,135.94,0.2]
[1765209487396,8.04,135.97,135.94,7.556074]
[1765209487571,8.71,135.97,135.94,7.556074]
[1765209487772,8.71,135.97,135.94,0.2]
[1765209488199,8.04,135.97,135.94,0.2]
[1765209488375,0.67,135.96,135.94,0.2]
[1765209489072,0.67,135.96,135.94,7.55617005]
[1765209489294,0.67,135.96,135.94,0.2]
[1765209489596,8.04,135.97,135.94,7.55616861]
[1765209489775,16.0646373,135.97,135.94,0.2]
[1765209490598,20.74985726,135.97,135.94,0.2]
[1765209490904,21.41985726,135.97,135.94,0.2]
[1765209491280,16.0646373,135.97,135.94,0.2]
[1765209492598,0.67,135.96,135.94,0.2]
[1765209492900,5.35521996,135.95,135.94,0.2]
[1765209493203,0.67,135.95,135.94,0.2]
[1765209493896,8.02564545,135.95,135.94,0.2]
[1765209496682,16.83559037,135.95,135.94,0.2]
[1765209497012,9.47994492,135.95,135.94,0.2]
[1765209497880,8.06,135.96,135.94,5.55521996]
[1765209498083,8.06,135.96,135.94,7.55580621]
[1765209498279,8.80994492,135.97,135.94,12.91102617]
[1765209498495,8.06,135.98,135.96,5.35521996]
[1765209498699,8.80994492,135.99,135.96,5.35521996]
[1765209498899,17.53994492,135.99,135.96,12.71031517]
[1765209499476,17.53994492,135.99,135.96,7.35509521]
[1765209499883,16.86994492,135.99,135.96,7.35509521]
[1765209500093,17.53994492,135.99,135.96,7.35509521]
[1765209500302,8.02242504,136.01,135.97,5.35521996]
[1765209500509,8.06,136.0,135.98,5.35521996]
[1765209500689,0.67,136.03,135.99,5.35521996]
[1765209500690,8.06,136.01,135.99,5.35521996]
[1765209500883,8.06,136.01,135.99,12.70819911]
[1765209501082,16.86994492,136.03,135.99,13.10819911]
[1765209501284,17.52994492,136.03,135.99,13.10819911]
[1765209501508,17.52994492,136.03,135.99,12.70819911]
[1765209502285,0.66,136.02,135.99,12.70819911]
[1765209504124,0.66,136.02,135.98,12.70924261]
[1765209504310,8.01208467,136.02,135.98,7.35402265]
[1765209504508,13.36730463,136.02,135.98,7.35402265]
[1765209504683,0.66,136.02,135.98,12.70924261]
[1765209504984,0.66,136.02,135.98,31.09429923]
[1765209505507,0.66,136.02,135.99,5.35521996]
[1765209505807,0.66,136.02,135.98,31.09429923]
[1765209508213,16.86994492,136.03,135.99,5.35521996]
[1765209508408,16.86994492,136.03,136.0,5.35521996]
[1765209508715,17.52994492,136.03,136.0,5.35521996]
[1765209508885,0.66,136.02,135.98,31.09429923]
[1765209509090,0.66,136.02,135.99,5.35521996]
[1765209509288,8.06,136.03,136.0,5.35521996]
[1765209509517,8.72,136.03,136.0,5.35521996]
[1765209509886,8.80994492,136.0,135.94,5.95521996]
[1765209510089,8.80994492,136.0,135.94,7.55599169]
[1765209510090,5.35521996,135.98,135.94,7.55599169]
[1765209510292,14.16516488,135.98,135.94,0.2]
[1765209510491,0.66,135.97,135.94,0.2]
[1765209510926,0.66,135.97,135.94,25.94652042]
[1765209511216,5.35521996,135.98,135.94,31.30174038]
[1765209511217,8.80994492,135.98,135.94,31.30174038]
[1765209511408,9.46994492,135.98,135.94,31.30174038]
[1765209511597,9.46994492,135.98,135.94,25.94652042]
[1765209511793,16.86994492,135.99,135.94,31.70174038]
[1765209511997,22.88516488,135.99,135.94,31.70174038]
[1765209512903,14.07521996,135.99,135.94,31.70174038]
[1765209513408,5.35521996,135.97,135.94,7.55605404]
[1765209513793,0.66,135.97,135.94,7.55605404]
[1765209514912,5.35521996,135.96,135.94,0.2]
[1765209515121,13.41521996,135.96,135.94,0.2]
[1765209515313,6.01521996,135.95,135.94,0.2]
[1765209515512,13.41521996,135.96,135.94,0.2]
[1765209515721,0.66,135.95,135.94,0.2]
[1765209516606,13.41521996,135.96,135.94,0.2]
[1765209516799,14.07521996,135.96,135.94,0.2]
[1765209517000,21.43034236,135.96,135.94,0.2]
[1765209518099,14.82516488,135.95,135.94,0.2]
[1765209518912,22.18081033,135.95,135.94,0.2]
[1765209519627,16.82559037,135.95,135.94,0.2]
[1765209519924,22.18081033,135.95,135.94,0.2]
[1765209520821,41.45130142,135.99,135.94,0.2]
[1765209521027,22.88516488,135.98,135.94,0.2]
[1765209521208,17.52994492,135.98,135.94,5.55521996]